bitfinex/quotes_BTCUSD_20220103
["timestamp","ask_amount","ask_price","bid_price","bid_amount"]
[1641182077158,0.95556722,46842.0,46834.0,0.05337508]
[1641182077359,0.6508095,46841.0,46834.0,0.05337508]
[1641182077563,1.33183482,46841.0,46834.0,0.05337508]
[1641182077763,1.00919649,46841.0,46834.0,0.05337508]
[1641182077963,1.33107169,46841.0,46834.0,0.05337508]
[1641182078161,1.33282408,46841.0,46834.0,0.05337508]
[1641182078361,1.00919649,46841.0,46834.0,0.05337508]
[1641182078562,1.00919649,46841.0,46836.0,0.05337385]
[1641182078764,0.70545099,46841.0,46836.0,0.05337385]
[1641182078964,0.70545099,46841.0,46834.0,0.34580555]
[1641182078965,0.447064,46841.0,46834.0,0.34580555]
[1641182079164,0.1,46841.0,46834.0,0.34580555]
[1641182079365,0.1,46841.0,46835.0,2.45467876]
[1641182079565,0.05,46842.0,46835.0,2.45467876]
[1641182079765,0.39354566,46845.0,46835.0,2.45467876]
[1641182080066,0.26778938,46844.0,46835.0,2.45467876]
[1641182080468,0.26778938,46844.0,46836.0,0.05337]
[1641182080709,0.347064,46843.0,46836.0,0.106741]
[1641182080903,0.05,46842.0,46836.0,0.106741]
[1641182081705,0.05,46842.0,46839.0,0.05336986]
[1641182082306,0.41778938,46844.0,46839.0,0.05336986]
[1641182082510,0.347064,46843.0,46839.0,0.05336986]
[1641182082706,0.41778938,46844.0,46839.0,0.05336986]
[1641182082908,0.41778938,46844.0,46841.0,0.05336784]
[1641182083108,0.347064,46843.0,46841.0,0.05336784]
[1641182083707,0.447064,46843.0,46841.0,0.05336784]
[1641182084108,0.60606433,46849.0,46842.0,0.32020494]
[1641182084311,0.60606433,46849.0,46843.0,0.05336334]
[1641182084558,0.60606433,46849.0,46843.0,0.053363]
[1641182084754,0.60606433,46849.0,46843.0,0.106726]
[1641182085358,0.002,46849.0,46843.0,0.106726]
[1641182086555,0.002,46849.0,46845.0,0.05336282]
[1641182088312,0.002,46849.0,46844.0,0.053362]
[1641182088313,0.002,46849.0,46846.0,0.05336216]
[1641182093070,0.01061,46849.0,46846.0,0.05336216]
[1641182094770,0.01061,46849.0,46847.0,0.346797]
[1641182097115,0.01061,46849.0,46846.0,0.05336216]
[1641182100367,0.01061,46849.0,46847.0,0.053361]
[1641182100568,0.01061,46849.0,46847.0,0.10672302]
[1641182102269,0.00561,46849.0,46847.0,0.10672302]
[1641182105119,0.00561,46849.0,46847.0,0.15508302]
[1641182105318,0.00561,46849.0,46847.0,0.07175403]
[1641182105519,0.00561,46849.0,46848.0,0.346765]
[1641182105718,0.00561,46849.0,46848.0,0.33391906]
[1641182105919,0.00561,46849.0,46843.0,0.39900335]
[1641182106122,0.00561,46849.0,46844.0,0.346764]
[1641182106819,0.00561,46849.0,46846.0,0.05336189]
[1641182107265,0.00561,46849.0,46846.0,0.10672389]
[1641182108567,0.00561,46849.0,46846.0,0.053362]
[1641182109571,0.00561,46849.0,46844.0,0.11472929]
[1641182109572,0.00561,46849.0,46844.0,0.00800372]
[1641182109771,0.50809125,46848.0,46844.0,0.00800372]
[1641182109970,0.053376,46846.0,46844.0,0.00800372]
[1641182110170,0.346764,46845.0,46832.0,0.0047]
[1641182110367,0.346764,46845.0,46830.0,0.2457216]
[1641182110368,0.36623031,46845.0,46830.0,0.00129568]
[1641182110568,0.27300357,46838.0,46830.0,0.11604545]
[1641182110805,0.3285373,46839.0,46831.0,0.346764]
[1641182111005,0.4285373,46839.0,46831.0,0.4001407]
[1641182111409,0.4285373,46839.0,46832.0,0.053377]
[1641182111606,0.1,46839.0,46830.0,0.00929945]
[1641182111806,0.1,46839.0,46831.0,0.346764]
[1641182112006,0.1,46839.0,46834.0,3.2195155]
[1641182112207,0.40756211,46842.0,46834.0,3.2195155]
[1641182112608,0.33045338,46841.0,46834.0,0.65689884]
[1641182112806,0.33045338,46841.0,46834.0,0.6035248]
[1641182113007,0.43045338,46841.0,46834.0,0.6035248]
[1641182113807,0.053379,46839.0,46834.0,0.6035248]
[1641182115267,0.26177,46838.0,46834.0,0.6035248]
[1641182115467,0.400144,46837.0,46834.0,0.6035248]
[1641182115668,0.550144,46837.0,46834.0,0.6035248]
[1641182116573,0.8190811,46837.0,46831.0,0.6035248]
[1641182117168,0.4723171,46837.0,46831.0,0.6035248]
[1641182117570,0.20338,46837.0,46831.0,0.6035248]
[1641182117769,0.15,46837.0,46831.0,0.6035248]
[1641182117969,0.05,46837.0,46831.0,0.6035248]
[1641182118236,0.053378,46839.0,46831.0,0.6535248]
[1641182118425,0.93451771,46841.0,46831.0,0.6035248]
[1641182118627,0.33045338,46841.0,46832.0,0.6035248]
[1641182118827,0.33045338,46841.0,46834.0,0.053375]
[1641182119026,0.346764,46840.0,46834.0,0.053375]
[1641182119230,0.346764,46840.0,46835.0,0.04803536]
[1641182119727,0.496764,46840.0,46835.0,0.10140836]
[1641182120328,0.496764,46840.0,46835.0,0.053373]
[1641182120530,0.496764,46840.0,46833.0,0.65156176]
[1641182120726,0.15,46840.0,46833.0,0.65156176]
[1641182121028,0.48045338,46841.0,46833.0,0.65156176]
[1641182121227,0.05,46841.0,46833.0,0.65156176]
[1641182121427,0.15,46841.0,46834.0,0.053375]
[1641182121631,0.15,46841.0,46835.0,0.6035248]
[1641182122171,0.14974307,46841.0,46835.0,0.6035248]
[1641182122575,0.04974307,46841.0,46835.0,0.6568988]
[1641182122974,0.64679271,46842.0,46835.0,0.70493387]
[1641182123576,0.69679271,46842.0,46835.0,0.70493387]
[1641182124580,0.69679271,46842.0,46837.0,0.053371]
[1641182124581,0.05,46842.0,46837.0,0.053371]
[1641182124976,0.0048,46844.0,46835.0,0.6568958]
[1641182125737,0.54544909,46844.0,46836.0,0.6568968]
[1641182125927,0.54544909,46844.0,46836.0,0.95607702]
[1641182126127,0.36988315,46844.0,46836.0,0.95635107]
[1641182126326,0.36988315,46844.0,46836.0,0.96361748]
[1641182126527,0.36988315,46844.0,46836.0,0.6568948]
[1641182126929,0.36988315,46844.0,46838.0,0.05337]
[1641182127131,0.26988315,46844.0,46836.0,0.6035248]
[1641182127330,0.36988315,46844.0,46842.0,0.00012918]
[1641182127728,0.346764,46843.0,46842.0,0.00012918]
[1641182129572,0.41988315,46844.0,46842.0,0.00012918]
[1641182130170,0.41508315,46844.0,46842.0,0.00012918]
[1641182130573,0.34054498,46843.0,46842.0,0.00012918]
[1641182131274,0.00054498,46843.0,46842.0,0.00012918]
[1641182132879,0.05391998,46843.0,46842.0,0.00012918]
[1641182133080,0.00054498,46843.0,46842.0,0.00012918]
[1641182133326,0.41054498,46843.0,46842.0,0.00012918]
[1641182133629,0.51054498,46843.0,46842.0,0.00012918]
[1641182133827,0.83607239,46843.0,46842.0,0.00012918]
[1641182134427,0.51054498,46843.0,46842.0,0.00012918]
[1641182134831,0.85730898,46843.0,46842.0,0.00012918]
[1641182135029,0.44730898,46843.0,46842.0,0.00012918]
[1641182137281,0.10054498,46843.0,46842.0,0.00012918]
[1641182137678,0.00054498,46843.0,46842.0,0.00012918]
[1641182139081,0.46400113,46844.0,46842.0,0.00012918]
[1641182143312,0.41062813,46844.0,46842.0,0.00012918]
[1641182144214,0.40712672,46844.0,46842.0,0.00012918]
[1641182144464,0.46049672,46844.0,46842.0,0.00012918]
[1641182146364,0.40712672,46844.0,46839.0,0.30591316]
[1641182146564,0.40712672,46844.0,46838.0,2.20454101]
[1641182147768,0.40712672,46844.0,46838.0,2.25790901]
[1641182147967,0.36508315,46844.0,46838.0,2.25790901]
[1641182148217,0.36508315,46844.0,46839.0,0.346764]
[1641182148412,0.41845315,46844.0,46839.0,0.400133]
[1641182148617,0.1,46844.0,46839.0,0.65703361]
[1641182149213,0.75967433,46849.0,46839.0,0.65703361]
[1641182149414,0.15561,46849.0,46838.0,2.20454101]
[1641182149613,0.26458745,46846.0,46839.0,0.30610793]
[1641182149813,0.26458745,46846.0,46839.0,0.35947593]
[1641182150419,0.26458745,46846.0,46840.0,0.160093]
[1641182150420,0.10328213,46846.0,46840.0,0.160093]
[1641182150617,0.10328213,46846.0,46845.0,0.00122268]
[1641182153764,0.70406433,46848.0,46845.0,0.00122268]
[1641182153965,0.75406433,46848.0,46846.0,0.053365]
[1641182154764,0.84669451,46847.0,46846.0,0.053365]
[1641182155163,0.94669451,46847.0,46846.0,0.053365]
[1641182155366,1.18685903,46847.0,46846.0,0.053365]
[1641182155843,0.94669451,46847.0,46846.0,0.053365]
[1641182156043,1.29345851,46847.0,46846.0,0.053365]
[1641182157647,0.94669451,46847.0,46846.0,0.053365]
[1641182158451,1.29345851,46847.0,46846.0,0.053365]
[1641182160060,1.05082833,46847.0,46846.0,0.053365]
[1641182160262,0.446764,46847.0,46846.0,0.053365]
[1641182160863,1.05082833,46847.0,46846.0,0.053365]
[1641182163611,1.04582833,46847.0,46846.0,0.053365]
[1641182164713,0.17719633,46847.0,46846.0,0.39217813]
[1641182164911,0.17719633,46847.0,46846.0,0.05459583]
[1641182165111,0.72489968,46849.0,46846.0,0.05459583]
[1641182165313,0.72489968,46849.0,46847.0,0.053362]
[1641182165614,0.72342628,46849.0,46847.0,0.106724]
[1641182166014,0.0001,46850.0,46847.0,0.106724]
[1641182166214,0.0001,46850.0,46848.0,0.106726]
[1641182166614,0.346764,46849.0,46848.0,0.106726]
[1641182167075,0.446764,46849.0,46848.0,0.106726]
[1641182167975,0.455374,46849.0,46848.0,0.106726]
[1641182172320,0.10861,46849.0,46848.0,0.106726]
[1641182172519,0.00861,46849.0,46848.0,0.106726]
[1641182173121,0.355374,46849.0,46848.0,0.106726]
[1641182174124,0.96096647,46849.0,46848.0,0.106726]
[1641182174978,1.06096647,46849.0,46848.0,0.106726]
[1641182175377,0.455374,46849.0,46848.0,0.106726]
[1641182175977,1.06096703,46849.0,46848.0,0.106726]
[1641182177179,1.05956703,46849.0,46848.0,0.106726]
[1641182177382,0.453974,46849.0,46848.0,0.106726]
[1641182177987,0.82437224,46849.0,46848.0,0.106726]
[1641182178222,1.5510832,46849.0,46847.0,0.053362]
[1641182178413,0.346764,46848.0,46847.0,0.053362]
[1641182178613,0.446764,46848.0,46847.0,0.053362]
[1641182179213,0.75751217,46848.0,46847.0,0.053362]
[1641182180014,0.446764,46848.0,46847.0,0.053362]
[1641182181217,1.17352733,46848.0,46847.0,0.053362]
[1641182182279,1.47995099,46848.0,46847.0,0.053362]
[1641182182878,0.75318766,46848.0,46847.0,0.053362]
[1641182184782,1.13716241,46848.0,46847.0,0.053362]
[1641182190266,1.13716241,46848.0,46847.0,0.053194]
[1641182190866,1.13716241,46848.0,46845.0,0.05338]
[1641182191068,0.396764,46846.0,46841.0,0.106757]
[1641182191267,0.32017806,46845.0,46841.0,0.106757]
[1641182191469,0.346764,46844.0,46841.0,0.106757]
[1641182191667,0.29631286,46843.0,46841.0,0.106757]
[1641182191870,0.346764,46842.0,46841.0,0.106757]
[1641182192067,0.80874948,46842.0,46841.0,0.106757]
[1641182192469,0.480355,46842.0,46840.0,0.106758]
[1641182192768,0.58711091,46842.0,46840.0,0.106758]
[1641182193221,0.89593286,46842.0,46840.0,0.106758]
[1641182193415,0.87960104,46841.0,46840.0,0.106758]
[1641182193614,1.32636504,46841.0,46840.0,0.106758]
[1641182193818,0.72072908,46841.0,46840.0,0.106758]
[1641182194819,1.03057187,46841.0,46840.0,0.106758]
[1641182196319,1.03057187,46841.0,46839.0,0.053378]
[1641182196521,0.66044762,46840.0,46839.0,0.053378]
[1641182196963,0.76044762,46840.0,46839.0,0.053378]
[1641182197364,1.487208,46840.0,46839.0,0.053378]
[1641182198160,1.487208,46840.0,46839.0,0.05350722]
[1641182199061,0.76044762,46840.0,46839.0,0.05350722]
[1641182209031,0.86721862,46840.0,46839.0,0.00012922]
[1641182209636,0.86721862,46840.0,46823.0,0.053385]
[1641182209637,0.47442041,46824.0,46823.0,0.053385]
[1641182209839,0.47442041,46824.0,46819.0,0.00861]
[1641182209840,0.47059298,46820.0,46819.0,0.00861]
[1641182210033,0.00124045,46816.0,46815.0,0.00861]
[1641182210236,0.39590445,46816.0,46815.0,0.00861]
[1641182210434,0.47169445,46816.0,46815.0,0.00861]
[1641182210633,1.51755566,46816.0,46815.0,0.00861]
[1641182210834,1.8440359,46816.0,46815.0,0.00861]
[1641182211033,0.05341164,46815.0,46812.0,1.09143909]
[1641182211233,0.44807564,46815.0,46812.0,1.09143909]
[1641182211534,0.54807564,46815.0,46812.0,1.09143909]
[1641182211740,0.54807564,46815.0,46811.0,0.00811435]
[1641182211969,2.64741586,46815.0,46811.0,0.00811435]
[1641182212168,0.91306398,46815.0,46811.0,0.00811435]
[1641182213070,1.64015258,46815.0,46811.0,0.00811435]
[1641182213874,2.14015258,46815.0,46811.0,0.00811435]
[1641182215173,1.41306398,46815.0,46811.0,0.00811435]
[1641182217521,1.35219618,46815.0,46811.0,0.06152235]
[1641182217921,1.04807564,46815.0,46811.0,0.06152235]
[1641182218522,0.106824,46817.0,46811.0,0.06152235]
[1641182218523,0.053401,46819.0,46814.0,0.26760372]
[1641182218720,0.52399324,46820.0,46814.0,0.26760372]
[1641182218721,0.5,46818.0,46814.0,0.26760372]
[1641182218921,0.495,46818.0,46814.0,0.26760372]
[1641182219577,0.79360095,46820.0,46814.0,0.26760372]
[1641182219778,0.79360095,46820.0,46816.0,0.106786]
[1641182220183,0.47059298,46820.0,46816.0,0.106786]
[1641182220576,0.57059298,46820.0,46816.0,0.106786]
[1641182220776,0.57059298,46820.0,46817.0,0.30211617]
[1641182221177,0.57059298,46820.0,46817.0,0.106786]
[1641182221379,0.346764,46819.0,46817.0,0.106786]
[1641182221678,0.446764,46819.0,46817.0,0.106786]
[1641182221877,0.441764,46819.0,46817.0,0.106786]
[1641182222476,0.1,46819.0,46817.0,0.106786]
[1641182222878,0.346837,46818.0,46817.0,0.106786]
[1641182223080,0.446837,46818.0,46817.0,0.106786]
[1641182223733,0.32461437,46817.0,46816.0,0.106786]
[1641182223934,0.67145137,46817.0,46816.0,0.106786]
[1641182224532,0.77145137,46817.0,46816.0,0.106786]
[1641182225438,0.446837,46817.0,46816.0,0.106786]
[1641182225833,0.441837,46817.0,46816.0,0.106786]
[1641182228180,0.1,46817.0,46816.0,0.106786]
[1641182228576,0.47059298,46820.0,46816.0,0.106786]
[1641182228577,0.57059298,46820.0,46816.0,0.106786]
[1641182228976,0.57059298,46820.0,46817.0,0.106785]
[1641182230476,0.57059298,46820.0,46818.0,0.30734949]
[1641182230746,0.57059298,46820.0,46817.0,0.45117591]
[1641182231534,0.57059298,46820.0,46818.0,0.30186391]
[1641182232135,0.57059298,46820.0,46819.0,0.28601892]
[1641182232338,0.57059298,46820.0,46819.0,0.61790554]
[1641182232537,0.57059298,46820.0,46819.0,0.33188662]
[1641182233136,0.47059298,46820.0,46819.0,0.33188662]
[1641182234877,0.47059298,46820.0,46819.0,0.93196745]
[1641182238235,0.47059298,46820.0,46817.0,0.45117591]
[1641182238820,0.523991,46820.0,46817.0,0.45117591]
[1641182239023,0.47920298,46820.0,46817.0,0.45117591]
[1641182241128,0.57920298,46820.0,46817.0,0.45117591]
[1641182242969,0.57920298,46820.0,46817.0,0.75408713]
[1641182243369,0.47920298,46820.0,46817.0,0.75408713]
[1641182244370,0.47920298,46820.0,46817.0,0.80747913]
[1641182248322,0.47920298,46820.0,46817.0,0.45117591]
[1641182249578,0.47920298,46820.0,46817.0,0.75226114]
[1641182250383,0.47920298,46820.0,46817.0,0.45117591]
[1641182252981,0.47420298,46820.0,46817.0,0.45117591]
[1641182253226,0.47420298,46820.0,46817.0,0.106785]
[1641182253422,0.57420298,46820.0,46817.0,0.106785]
[1641182255321,0.47420298,46820.0,46817.0,0.106785]
[1641182260920,0.47420298,46820.0,46818.0,0.60008083]
[1641182262722,0.47420298,46820.0,46817.0,0.76025883]
[1641182262923,0.47420298,46820.0,46817.0,0.70686583]
[1641182263724,0.47420298,46820.0,46817.0,0.106785]
[1641182263927,0.47420298,46820.0,46818.0,0.3013533]
[1641182269738,0.47420298,46820.0,46817.0,0.160179]
[1641182271139,0.47420298,46820.0,46817.0,0.106785]
[1641182271735,0.47420298,46820.0,46818.0,0.30554075]
[1641182272375,0.47420298,46820.0,46817.0,0.106785]
[1641182273473,0.47420298,46820.0,46817.0,0.160178]
[1641182273674,0.47420298,46820.0,46817.0,0.106785]
[1641182274475,0.47420298,46820.0,46819.0,0.00012935]
[1641182274675,0.74085504,46820.0,46819.0,0.00012935]
[1641182274878,1.08769604,46820.0,46819.0,0.00012935]
[1641182277132,0.82104398,46820.0,46819.0,0.00012935]
[1641182278132,0.92104398,46820.0,46819.0,0.00012935]
[1641182279786,1.25110672,46820.0,46819.0,0.00012935]
[1641182280584,1.38631445,46820.0,46819.0,0.00012935]
[1641182280785,1.34900672,46820.0,46819.0,0.00012935]
[1641182281785,1.95233612,46820.0,46819.0,0.00012935]
[1641182281985,1.90914612,46820.0,46819.0,0.00012935]
[1641182282385,1.19900672,46820.0,46819.0,0.00012935]
[1641182282986,1.59603258,46820.0,46819.0,0.00012935]
[1641182283252,1.20129158,46820.0,46819.0,0.00012935]
[1641182283839,1.08014075,46820.0,46819.0,0.00012935]
[1641182285043,0.47420298,46820.0,46819.0,0.00012935]
[1641182286842,0.57420298,46820.0,46819.0,0.00012935]
[1641182288482,0.92104398,46820.0,46819.0,0.00012935]
[1641182289781,0.97104398,46820.0,46819.0,0.00012935]
[1641182291337,0.62420298,46820.0,46819.0,0.00012935]
[1641182291734,0.97104398,46820.0,46819.0,0.00012935]
[1641182291934,0.97104398,46820.0,46819.0,2.67071351]
[1641182292234,0.62420298,46820.0,46819.0,0.00012935]
[1641182292435,0.97104398,46820.0,46819.0,0.00012935]
[1641182292634,0.92104398,46820.0,46819.0,0.00012935]
[1641182292939,0.97104398,46820.0,46819.0,0.00012935]
[1641182296083,0.92104398,46820.0,46819.0,0.00012935]
[1641182297283,0.57420298,46820.0,46819.0,0.00012935]
[1641182299836,0.92104398,46820.0,46819.0,0.00012935]
[1641182307141,1.29947705,46820.0,46819.0,0.00012935]
[1641182307341,1.19266505,46820.0,46819.0,0.00012935]
[1641182308041,2.08436596,46820.0,46819.0,0.00012935]
[1641182308841,1.19266505,46820.0,46819.0,0.00012935]
[1641182309501,1.68347634,46820.0,46819.0,0.00012935]
[1641182309698,1.73257768,46820.0,46819.0,0.00012935]
[1641182309897,1.34176639,46820.0,46819.0,0.00012935]
[1641182310098,1.71636735,46820.0,46819.0,0.00012935]
[1641182310499,1.34176639,46820.0,46819.0,0.00012935]
[1641182310698,1.42724561,46820.0,46819.0,0.00012935]
[1641182310901,2.25932142,46820.0,46819.0,0.00012935]
[1641182311102,2.1738422,46820.0,46819.0,0.00012935]
[1641182311701,2.6738422,46820.0,46819.0,0.00012935]
[1641182312701,2.75932142,46820.0,46819.0,0.00012935]
[1641182314426,2.70932142,46820.0,46819.0,0.00012935]
[1641182316332,2.6238422,46820.0,46819.0,0.00012935]
[1641182318489,2.62292009,46820.0,46819.0,0.00012935]
[1641182323138,3.12292009,46820.0,46819.0,0.00012935]
[1641182324144,3.17292009,46820.0,46819.0,0.00012935]
[1641182325972,2.67292009,46820.0,46819.0,0.00012935]
[1641182326572,2.40129902,46820.0,46819.0,0.00012935]
[1641182326878,2.35129902,46820.0,46819.0,0.00012935]
[1641182327472,2.35008513,46820.0,46819.0,0.00012935]
[1641182328529,2.40008513,46820.0,46819.0,0.00012935]
[1641182328730,2.40129582,46820.0,46819.0,0.00012935]
[1641182328930,2.17451307,46820.0,46819.0,0.00012935]
[1641182329533,1.56922001,46820.0,46819.0,0.00012935]
[1641182330230,1.90922001,46820.0,46819.0,0.00012935]
[1641182330633,3.13560525,46820.0,46819.0,0.00012935]
[1641182330830,2.79560525,46820.0,46819.0,0.00012935]
[1641182331432,2.15128181,46820.0,46819.0,0.00012935]
[1641182332680,2.87766713,46820.0,46819.0,0.00012935]
[1641182333282,2.82766713,46820.0,46819.0,0.00012935]
[1641182333483,2.69770533,46820.0,46819.0,0.00012935]
[1641182333684,1.97132001,46820.0,46819.0,0.00012935]
[1641182335186,1.97010932,46820.0,46819.0,0.00012935]
[1641182336132,1.47010932,46820.0,46819.0,0.00012935]
[1641182341477,2.07522755,46820.0,46819.0,0.00012935]
[1641182342576,1.47010932,46820.0,46819.0,0.00012935]
[1641182343725,1.52135766,46820.0,46819.0,0.00012935]
[1641182344427,2.12647589,46820.0,46819.0,0.00012935]
[1641182345028,0.33629873,46819.0,46818.0,0.1]
[1641182345225,1.49227587,46819.0,46818.0,0.1]
[1641182345427,1.59227587,46819.0,46818.0,0.1]
[1641182345626,1.28313973,46819.0,46818.0,0.1]
[1641182346527,1.58323586,46819.0,46818.0,0.1]
[1641182349592,2.13620531,46819.0,46818.0,0.10012944]
[1641182355900,1.28313973,46819.0,46818.0,0.10012944]
[1641182360752,0.78313973,46819.0,46818.0,0.10012944]
[1641182366029,1.08238728,46819.0,46818.0,0.10012944]
[1641182366829,1.13028728,46819.0,46818.0,0.10012944]
[1641182367629,1.65083388,46819.0,46818.0,0.10012944]
[1641182369772,0.83103973,46819.0,46818.0,0.10012944]
[1641182370980,1.13891328,46819.0,46818.0,0.10012944]
[1641182372275,1.96057005,46819.0,46818.0,0.10012944]
[1641182374734,1.6526965,46819.0,46818.0,0.10012944]
[1641182380173,1.6526965,46819.0,46818.0,0.09512944]
[1641182380823,0.21760372,46814.0,46811.0,0.00011]
[1641182381024,0.346841,46812.0,46811.0,0.00011]
[1641182381229,0.346841,46812.0,46807.0,0.00011]
[1641182381230,1.42726222,46812.0,46807.0,0.00011]
[1641182381433,0.945841,46811.0,46807.0,0.00011]
[1641182381625,2.222741,46811.0,46807.0,0.00011]
[1641182381821,2.222741,46811.0,46806.0,0.60008083]
[1641182381822,2.372741,46811.0,46806.0,0.60008083]
[1641182382023,2.223135,46807.0,46804.0,0.00022]
[1641182382221,0.394741,46806.0,46804.0,0.00022]
[1641182382419,2.34539777,46806.0,46804.0,0.00022]
[1641182382626,2.49539777,46806.0,46805.0,0.00011]
[1641182382820,1.36639777,46806.0,46805.0,0.00011]
[1641182384022,1.21639777,46806.0,46805.0,0.00011]
[1641182384468,1.16849777,46806.0,46805.0,0.00011]
[1641182385269,0.346841,46806.0,46805.0,0.00011]
[1641182385473,0.05343138,46808.0,46805.0,0.00011]
[1641182387473,0.05343138,46808.0,46805.0,0.053521]
[1641182389229,0.05,46809.0,46805.0,0.053521]
[1641182389431,0.37085674,46812.0,46807.0,0.053408]
[1641182389432,0.41960622,46812.0,46807.0,0.053408]
[1641182389636,0.346841,46811.0,46805.0,0.00011]
[1641182390029,0.446841,46811.0,46805.0,0.00011]
[1641182390432,0.446841,46811.0,46806.0,0.106816]
[1641182390628,0.50024875,46811.0,46808.0,0.053408]
[1641182391733,0.50024875,46811.0,46806.0,0.106816]
[1641182391978,0.446841,46811.0,46805.0,0.00011]
[1641182392179,0.10682782,46809.0,46805.0,0.00011]
[1641182392378,0.1,46811.0,46805.0,0.00011]
[1641182392582,0.41960622,46812.0,46805.0,0.00011]
[1641182392782,0.346841,46811.0,46805.0,0.00011]
[1641182392982,0.346841,46811.0,46807.0,0.053411]
[1641182393182,0.446841,46811.0,46805.0,0.00011]
[1641182394182,0.45545,46811.0,46805.0,0.00011]
[1641182394487,0.10182433,46810.0,46805.0,0.00011]
[1641182394683,0.05341398,46809.0,46805.0,0.00011]
[1641182395584,0.1068318,46808.0,46805.0,0.00011]
[1641182395836,0.10683156,46807.0,46805.0,0.00011]
[1641182396336,0.15683156,46807.0,46805.0,0.00011]
[1641182396938,0.05341556,46807.0,46805.0,0.00011]
[1641182397139,0.05,46806.0,46805.0,0.00011]
[1641182400169,0.05,46806.0,46804.0,0.050676]
[1641182400770,0.103418,46806.0,46804.0,0.050676]
[1641182401374,0.82924855,46806.0,46804.0,0.050676]
[1641182401573,0.346841,46805.0,46804.0,0.050676]
[1641182401972,0.446841,46805.0,46804.0,0.050676]
[1641182402174,0.496841,46805.0,46804.0,0.050676]
[1641182402976,0.79734413,46805.0,46804.0,0.00011]
[1641182403254,0.84524413,46805.0,46804.0,0.00011]
[1641182403642,0.89651964,46805.0,46804.0,0.00011]
[1641182403840,2.225576,46805.0,46803.0,0.00011]
[1641182404043,0.346841,46804.0,46803.0,0.00011]
[1641182404240,1.523741,46804.0,46803.0,0.00011]
[1641182404541,1.89495584,46804.0,46802.0,0.00022]
[1641182404740,1.475841,46803.0,46802.0,0.00022]
[1641182404945,1.776841,46802.0,46800.0,0.00011]
[1641182405143,0.39595296,46801.0,46800.0,0.00011]
[1641182405542,0.49595296,46801.0,46800.0,0.00011]
[1641182405742,0.80976371,46801.0,46800.0,0.00011]
[1641182406445,2.95865602,46801.0,46800.0,0.00011]
[1641182406641,0.00120921,46800.0,46793.0,0.00022]
[1641182406842,1.824741,46799.0,46793.0,0.00022]
[1641182407077,1.924741,46799.0,46793.0,0.00022]
[1641182407476,2.523741,46799.0,46793.0,0.00022]
[1641182407772,4.18468331,46799.0,46794.0,0.00849611]
[1641182408171,5.31368331,46799.0,46794.0,0.00849611]
[1641182408372,5.31368331,46799.0,46795.0,0.00033]
[1641182408575,0.346841,46796.0,46794.0,0.00827611]
[1641182408873,3.27650199,46795.0,46794.0,0.00327611]
[1641182409075,3.42650199,46795.0,46794.0,0.00327611]
[1641182409472,2.20684314,46795.0,46794.0,0.00327611]
[1641182409773,2.20812397,46795.0,46794.0,0.00327611]
[1641182410173,2.20812397,46795.0,46793.0,0.00022]
[1641182410374,0.66894759,46794.0,46793.0,0.00022]
[1641182410575,0.81684759,46794.0,46793.0,0.00022]
[1641182411426,1.8367399,46794.0,46793.0,0.00022]
[1641182413430,1.51463331,46794.0,46793.0,0.00022]
[1641182414233,0.494741,46794.0,46793.0,0.00426212]
[1641182414688,0.446841,46794.0,46793.0,0.00426212]
[1641182415492,1.17438043,46794.0,46793.0,0.00426212]
[1641182415990,1.52054402,46794.0,46793.0,0.00426212]
[1641182416793,0.79300459,46794.0,46793.0,0.00426212]
[1641182417094,3.292052,46794.0,46793.0,0.00426212]
[1641182417693,1.81368662,46794.0,46793.0,0.00426212]
[1641182418092,1.51542303,46794.0,46793.0,0.00426212]
[1641182420924,1.5153363,46794.0,46793.0,0.00426212]
[1641182421424,0.49465427,46794.0,46793.0,0.00426212]
[1641182421626,0.80541938,46794.0,46793.0,0.00426212]
[1641182422201,1.40541938,46794.0,46793.0,0.00426212]
[1641182422600,0.80541938,46794.0,46793.0,0.00426212]
[1641182423702,1.30541938,46794.0,46793.0,0.00426212]
[1641182423901,0.99465427,46794.0,46793.0,0.00426212]
[1641182425002,1.62965427,46794.0,46793.0,0.00426212]
[1641182425202,1.62965427,46794.0,46793.0,0.00415212]
[1641182425203,2.33658427,46794.0,46793.0,0.00415212]
[1641182425402,2.38658427,46794.0,46793.0,0.00415212]
[1641182425838,0.91,46793.0,46792.0,0.00011]
[1641182426041,1.458189,46793.0,46792.0,0.00011]
[1641182427138,0.548189,46793.0,46792.0,0.00011]
[1641182427341,1.58817416,46792.0,46791.0,0.00211]
[1641182427539,0.88297316,46792.0,46791.0,0.00211]
[1641182427739,1.19623097,46792.0,46791.0,0.00211]
[1641182429877,1.92733794,46792.0,46791.0,0.00211]
[1641182430374,2.00943132,46792.0,46791.0,0.00211]
[1641182431875,0.96506654,46792.0,46791.0,0.00211]
[1641182432880,2.01258429,46792.0,46791.0,0.00211]
[1641182434929,2.10894429,46792.0,46791.0,0.00211]
[1641182436129,2.01258429,46792.0,46791.0,0.00211]
[1641182443225,2.00758429,46792.0,46791.0,0.00211]
[1641182444225,0.96006654,46792.0,46791.0,0.00211]
[1641182444875,1.36006654,46792.0,46791.0,0.00211]
[1641182445675,0.96006654,46792.0,46791.0,0.00211]
[1641182445881,1.99214735,46792.0,46791.0,0.00211]
[1641182447678,2.49214735,46792.0,46791.0,0.00211]
[1641182447881,3.62240005,46792.0,46791.0,0.00211]
[1641182448080,2.50124916,46792.0,46791.0,0.00211]
[1641182449132,2.49340005,46792.0,46791.0,0.00211]
[1641182450129,2.41130667,46792.0,46791.0,0.00211]
[1641182450830,1.37922586,46792.0,46791.0,0.00211]
[1641182451734,1.32922586,46792.0,46791.0,0.00211]
[1641182451995,2.80994732,46792.0,46791.0,0.00211]
[1641182452395,1.68094732,46792.0,46791.0,0.00211]
[1641182452595,2.28757634,46792.0,46791.0,0.00211]
[1641182452996,1.25194732,46792.0,46791.0,0.00211]
[1641182453596,2.28758152,46792.0,46791.0,0.00211]
[1641182454402,1.93586006,46792.0,46791.0,0.00211]
[1641182455600,0.6689477,46792.0,46791.0,0.00211]
[1641182455851,0.6861667,46792.0,46791.0,0.00211]
[1641182456053,0.385118,46792.0,46791.0,0.00211]
[1641182457449,0.99106668,46792.0,46791.0,0.00211]
[1641182457846,1.14106668,46792.0,46791.0,0.00211]
[1641182458247,0.535118,46792.0,46791.0,0.00211]
[1641182460491,0.485118,46792.0,46791.0,0.00211]
[1641182460790,0.038219,46792.0,46791.0,0.00211]